fUSD/lending_fUSD_20250602
["ID","MTS","AMOUNT","RATE_DAILY","PERIOD"]
[363775602,1748867461217,-487.30933949,0.00019797,2]
[363775603,1748867461227,-800.0,0.000198,7]
[363775604,1748867461236,-3758.50160772,0.00019809,2]
[363775605,1748867461246,-2122.4532337,0.00019809,2]
[363775606,1748867461255,-7900.57798345,0.0001981,2]
[363775607,1748867461265,-150.0,0.00019835,2]
[363775608,1748867461274,-200.0,0.00019839,2]
[363775609,1748867461284,-200.0,0.0001984,2]
[363775610,1748867461293,-375.0,0.00019845,2]
[363775611,1748867461303,-1881.0,0.00019848,2]
[363775612,1748867461313,-1195.85,0.00019862,2]
[363775613,1748867461323,-1195.85,0.00019862,2]
[363775614,1748867461333,-1195.85,0.00019862,2]
[363775615,1748867461342,-1195.85,0.00019862,2]
[363775616,1748867461352,-1195.85,0.00019862,2]
[363775617,1748867461362,-1195.85,0.00019862,2]
[363775618,1748867461372,-1195.85,0.00019862,2]
[363775619,1748867461382,-1195.85,0.00019862,2]
[363775620,1748867461393,-1195.85,0.00019862,2]
[363775621,1748867461403,-1195.85,0.00019862,2]
[363775622,1748867461414,-1195.85,0.00019862,2]
[363775623,1748867461424,-1195.85,0.00019862,2]
[363775624,1748867461436,-1195.85,0.00019862,2]
[363775625,1748867461450,-1195.85,0.00019862,2]
[363775626,1748867461460,-1195.85,0.00019862,2]
[363775627,1748867461470,-1195.85,0.00019862,2]
[363775628,1748867461480,-1195.85,0.00019862,2]
[363775629,1748867461490,-1195.85,0.00019862,2]
[363775630,1748867461500,-1195.85,0.00019862,2]
[363775631,1748867461510,-1195.85,0.00019862,2]
[363775632,1748867461520,-1195.85,0.00019862,2]
[363775633,1748867461532,-1195.85,0.00019862,2]
[363775634,1748867461543,-1195.85,0.00019862,2]
[363775635,1748867461552,-1196.00841982,0.00019862,2]
[363775636,1748867461562,-500.0,0.00019862,2]
[363775637,1748867461572,-500.0,0.00019862,2]
[363775638,1748867461582,-233.34,0.00019863,2]
[363775639,1748867461592,-1995.139131,0.00019863,2]
[363775640,1748867461607,-2505.226592,0.00019863,2]
[363775641,1748867461617,-420.0,0.00019863,2]
[363775642,1748867461627,-420.0,0.00019863,2]
[363775643,1748867461636,-375.91160684,0.00019863,2]
[363775644,1748867461645,-506.36,0.00019863,2]
[363775645,1748867461656,-420.0,0.00019863,2]
[363775646,1748867461666,-420.0,0.00019863,2]
[363775647,1748867461676,-420.0,0.00019863,2]
[363775648,1748867461687,-420.0,0.00019863,2]
[363775649,1748867461696,-420.0,0.00019863,2]
[363775650,1748867461706,-547.67,0.00019863,2]
[363775651,1748867461716,-420.0,0.00019863,2]
[363775652,1748867461726,-420.0,0.00019863,2]
[363775653,1748867461736,-420.0,0.00019863,2]
[363775654,1748867461745,-420.0,0.00019863,2]
[363775655,1748867461755,-420.0,0.00019863,2]
[363775656,1748867461765,-420.0,0.00019863,2]
[363775657,1748867461774,-420.0,0.00019863,2]
[363775658,1748867461784,-420.0,0.00019863,2]
[363775659,1748867461794,-420.0,0.00019863,2]
[363775660,1748867461804,-403.03794017,0.00019863,2]
[363775661,1748867461813,-420.0,0.00019863,2]
[363775662,1748867461823,-420.0,0.00019863,2]
[363775663,1748867461833,-420.0,0.00019863,2]
[363775664,1748867461843,-420.0,0.00019863,2]
[363775665,1748867461854,-420.0,0.00019863,2]
[363775666,1748867461863,-420.0,0.00019863,2]
[363775667,1748867461873,-420.0,0.00019863,2]
[363775668,1748867461882,-420.0,0.00019863,2]
[363775669,1748867461892,-420.0,0.00019863,2]
[363775670,1748867461902,-420.0,0.00019863,2]
[363775671,1748867461912,-420.0,0.00019863,2]
[363775672,1748867461921,-555.49471039,0.00019863,2]
[363775673,1748867461931,-420.0,0.00019863,2]
[363775674,1748867461940,-480.25,0.00019863,2]
[363775675,1748867461950,-420.0,0.00019863,2]
[363775676,1748867461960,-420.0,0.00019863,2]
[363775677,1748867461970,-420.0,0.00019863,2]
[363775678,1748867461979,-420.0,0.00019863,2]
[363775679,1748867461989,-420.0,0.00019863,2]
[363775680,1748867461999,-420.0,0.00019863,2]
[363775681,1748867462008,-420.0,0.00019863,2]
[363775682,1748867462017,-420.0,0.00019863,2]
[363775683,1748867462027,-324.42122587,0.00019863,2]
[363775684,1748867462036,-420.0,0.00019863,2]
[363775685,1748867462046,-420.0,0.00019863,2]
[363775686,1748867462056,-420.0,0.00019863,2]
[363775687,1748867462066,-420.0,0.00019863,2]
[363775688,1748867462076,-420.0,0.00019863,2]
[363775689,1748867462085,-420.0,0.00019863,2]
[363775690,1748867462095,-420.0,0.00019863,2]
[363775691,1748867462104,-420.0,0.00019863,2]
[363775692,1748867462114,-420.0,0.00019863,2]
[363775693,1748867462127,-420.0,0.00019863,2]
[363775694,1748867462143,-420.0,0.00019863,2]
[363775695,1748867462161,-420.0,0.00019863,2]
[363775696,1748867462176,-454.24841461,0.00019863,2]
[363775697,1748867462194,-420.0,0.00019863,2]
[363775698,1748867462210,-381.10333673,0.00019863,2]
[363775699,1748867462223,-420.0,0.00019863,2]
[363775700,1748867462237,-420.0,0.00019863,2]
[363775701,1748867462254,-420.0,0.00019863,2]
[363775702,1748867462270,-420.0,0.00019863,2]
[363775703,1748867462287,-420.0,0.00019863,2]
[363775704,1748867462304,-519.01,0.00019863,2]
[363775705,1748867462319,-420.0,0.00019863,2]
[363775706,1748867462334,-420.0,0.00019863,2]
[363775707,1748867462350,-462.42,0.00019863,2]
[363775708,1748867462367,-958.67,0.00019863,2]
[363775709,1748867462382,-2750.23,0.00019863,2]
[363775710,1748867462395,-1165.66,0.00019863,2]
[363775711,1748867462413,-420.0,0.00019863,2]
[363775712,1748867462425,-173.96,0.00019863,2]
[363775713,1748867462438,-498.01,0.00019863,2]
[363775714,1748867462457,-470.09,0.00019863,2]
[363775715,1748867462470,-420.0,0.00019863,2]
[363775716,1748867462485,-420.0,0.00019863,2]
[363775717,1748867462499,-420.0,0.00019863,2]
[363775718,1748867462517,-420.0,0.00019863,2]
[363775719,1748867462533,-420.0,0.00019863,2]
[363775720,1748867462547,-420.0,0.00019863,2]
[363775721,1748867462562,-420.0,0.00019863,2]
[363775722,1748867462576,-14935.26,0.00019863,2]
[363775723,1748867462591,-1157.04,0.00019863,2]
[363775724,1748867462605,-420.0,0.00019863,2]
[363775725,1748867462621,-563.6,0.00019863,2]
[363775726,1748867462634,-420.0,0.00019863,2]
[363775727,1748867462649,-420.0,0.00019863,2]
[363775728,1748867462662,-420.0,0.00019863,2]
[363775729,1748867462676,-493.43,0.00019863,2]
[363775730,1748867462690,-681.0,0.00019863,2]
[363775731,1748867462704,-420.0,0.00019863,2]
[363775732,1748867462717,-566.0,0.00019863,2]
[363775733,1748867462731,-1130.25,0.00019863,2]
[363775734,1748867462745,-420.0,0.00019863,2]
[363775735,1748867462759,-685.03,0.00019863,2]
[363775736,1748867462773,-420.0,0.00019863,2]
[363775737,1748867462788,-420.0,0.00019863,2]
[363775738,1748867462803,-521.31,0.00019863,2]
[363775739,1748867462818,-420.0,0.00019863,2]
[363775740,1748867462832,-420.0,0.00019863,2]
[363775741,1748867462846,-420.0,0.00019863,2]
[363775742,1748867462861,-420.0,0.00019863,2]
[363775743,1748867462875,-1042.11,0.00019863,2]
[363775744,1748867462890,-420.0,0.00019863,2]
[363775745,1748867462905,-1489.08,0.00019863,2]
[363775746,1748867462918,-1690.99,0.00019863,2]
[363775747,1748867462933,-420.0,0.00019863,2]
[363775748,1748867462947,-420.0,0.00019863,2]
[363775749,1748867462962,-550.3,0.00019863,2]
[363775750,1748867462976,-905.78,0.00019863,2]
[363775751,1748867462990,-420.0,0.00019863,2]
[363775752,1748867463004,-420.0,0.00019863,2]
[363775753,1748867463021,-420.0,0.00019863,2]
[363775754,1748867463038,-4202.04,0.00019863,2]
[363775755,1748867463053,-726.96,0.00019863,2]
[363775756,1748867463069,-420.0,0.00019863,2]
[363775757,1748867463085,-420.0,0.00019863,2]
[363775758,1748867463103,-800.6,0.00019863,2]
[363775759,1748867463118,-420.0,0.00019863,2]
[363775760,1748867463135,-420.0,0.00019863,2]
[363775761,1748867463150,-978.64,0.00019863,2]
[363775762,1748867463167,-420.0,0.00019863,2]
[363775763,1748867463183,-420.0,0.00019863,2]
[363775764,1748867463198,-420.0,0.00019863,2]
[363775765,1748867463213,-420.0,0.00019863,2]
[363775766,1748867463229,-1690.87,0.00019863,2]
[363775767,1748867463244,-420.0,0.00019863,2]
[363775768,1748867463260,-420.0,0.00019863,2]
[363775769,1748867463276,-420.0,0.00019863,2]
[363775770,1748867463292,-262.94564188,0.00019863,2]
[363775771,1748867463308,-420.0,0.00019863,2]
[363775772,1748867463324,-420.0,0.00019863,2]
[363775773,1748867463339,-420.0,0.00019863,2]
[363775774,1748867463357,-420.0,0.00019863,2]
[363775775,1748867463372,-4165.15,0.00019863,2]
[363775776,1748867463388,-420.0,0.00019863,2]
[363775777,1748867463404,-229.22024976,0.00019863,2]
[363775778,1748867463419,-468.04,0.00019863,2]
[363775779,1748867463434,-420.0,0.00019863,2]
[363775780,1748867463453,-420.0,0.00019863,2]
[363775781,1748867463469,-420.0,0.00019863,2]
[363775782,1748867463485,-542.46,0.00019863,2]
[363775783,1748867463500,-420.0,0.00019863,2]
[363775784,1748867463514,-420.0,0.00019863,2]
[363775785,1748867463529,-420.0,0.00019863,2]
[363775786,1748867463543,-420.0,0.00019863,2]
[363775787,1748867463556,-420.0,0.00019863,2]
[363775788,1748867463572,-669.01,0.00019863,2]
[363775789,1748867463588,-420.0,0.00019863,2]
[363775790,1748867463602,-420.0,0.00019863,2]
[363775791,1748867463617,-420.0,0.00019863,2]
[363775792,1748867463631,-420.0,0.00019863,2]
[363775793,1748867463645,-667.42,0.00019863,2]
[363775794,1748867463659,-420.0,0.00019863,2]
[363775795,1748867463674,-420.0,0.00019863,2]
[363775796,1748867463684,-1352.08,0.00019863,2]
[363775797,1748867463694,-420.0,0.00019863,2]
[363775798,1748867463705,-842.73,0.00019863,2]
[363775799,1748867463714,-1858.25,0.00019863,2]
[363775800,1748867463725,-326.0,0.00019863,2]
[363775801,1748867463992,-420.0,0.00019863,2]
[363775802,1748867464028,-554.07,0.00019863,2]
[363775803,1748867464041,-420.0,0.00019863,2]
[363775804,1748867464052,-420.0,0.00019863,2]
[363775805,1748867464063,-420.0,0.00019863,2]
[363775806,1748867464073,-420.0,0.00019863,2]
[363775807,1748867464084,-820.8,0.00019863,2]
[363775808,1748867464096,-550.36,0.00019863,2]
[363775809,1748867464108,-420.0,0.00019863,2]
[363775810,1748867464119,-2393.79,0.00019863,2]
[363775811,1748867464130,-420.0,0.00019863,2]
[363775812,1748867464140,-864.26,0.00019863,2]
[363775813,1748867464151,-3160.13,0.00019863,2]
[363775814,1748867464161,-420.0,0.00019863,2]
[363775815,1748867464171,-529.79871502,0.00019863,2]
[363775816,1748867464182,-1767.75,0.00019863,2]
[363775817,1748867464192,-420.0,0.00019863,2]
[363775818,1748867464207,-420.0,0.00019863,2]
[363775819,1748867464216,-2585.55,0.00019863,2]
[363775820,1748867464226,-1243.7,0.00019863,2]
[363775821,1748867464236,-429.37,0.00019863,2]
[363775822,1748867464246,-420.0,0.00019863,2]
[363775823,1748867464256,-2534.59,0.00019863,2]
[363775824,1748867464265,-420.0,0.00019863,2]
[363775825,1748867464275,-420.0,0.00019863,2]
[363775826,1748867464285,-880.65,0.00019863,2]
[363775827,1748867464295,-420.0,0.00019863,2]
[363775828,1748867464304,-420.0,0.00019863,2]
[363775829,1748867464314,-1315.03,0.00019863,2]
[363775830,1748867464323,-420.0,0.00019863,2]
[363775831,1748867464334,-420.0,0.00019863,2]
[363775832,1748867464344,-420.0,0.00019863,2]
[363775833,1748867464355,-420.0,0.00019863,2]
[363775834,1748867464364,-472.96,0.00019863,2]
[363775835,1748867464374,-420.0,0.00019863,2]
[363775836,1748867464383,-420.0,0.00019863,2]
[363775837,1748867464392,-420.0,0.00019863,2]
[363775838,1748867464402,-462.31,0.00019863,2]
[363775839,1748867464412,-1271.04,0.00019863,2]
[363775840,1748867464421,-648.74,0.00019863,2]
[363775841,1748867464430,-420.0,0.00019863,2]
[363775842,1748867464440,-420.0,0.00019863,2]
[363775843,1748867464452,-298.0,0.00019863,2]
[363775844,1748867464462,-420.0,0.00019863,2]
[363775845,1748867464472,-420.0,0.00019863,2]
[363775846,1748867464483,-420.0,0.00019863,2]
[363775847,1748867464492,-692.54,0.00019863,2]
[363775848,1748867464502,-3069.14,0.00019863,2]
[363775849,1748867464511,-685.63,0.00019863,2]
[363775850,1748867464521,-420.0,0.00019863,2]
[363775851,1748867464530,-1840.13,0.00019863,2]
[363775852,1748867464540,-612.55,0.00019863,2]
[363775853,1748867464549,-990.37,0.00019863,2]
[363775854,1748867464559,-420.0,0.00019863,2]
[363775855,1748867464569,-420.0,0.00019863,2]
[363775856,1748867464578,-467.8,0.00019863,2]
[363775857,1748867464588,-420.0,0.00019863,2]
[363775858,1748867464597,-420.0,0.00019863,2]
[363775859,1748867464606,-420.0,0.00019863,2]
[363775860,1748867464615,-1256.31,0.00019863,2]
[363775861,1748867464625,-420.0,0.00019863,2]
[363775862,1748867464635,-420.0,0.00019863,2]
[363775863,1748867464645,-565.39,0.00019863,2]
[363775864,1748867464655,-743.93,0.00019863,2]
[363775865,1748867464665,-420.0,0.00019863,2]
[363775866,1748867464675,-420.0,0.00019863,2]
[363775867,1748867464685,-1533.64,0.00019863,2]
[363775868,1748867464695,-481.13160531,0.00019863,2]
[363775869,1748867464705,-723.86,0.00019863,2]
[363775870,1748867464715,-1076.54,0.00019863,2]
[363775871,1748867464724,-3758.50160772,0.000199,2]
[363775872,1748867464734,-800.0,0.000199,7]
[363775873,1748867464743,-2122.4532337,0.000199,2]
[363775874,1748867464753,-487.30933949,0.000199,2]
[363775875,1748867464762,-205.64641004,0.000199,3]
[363775876,1748867464772,-6020.27730831,0.000199,2]
[363775877,1748867464781,-1150.0,0.000199,2]
[363775878,1748867464789,-168.65677843,0.0001994,2]
[363775879,1748867464797,-1263.9110044,0.0001994,2]
[363775880,1748867464806,-162.21107944,0.0001994,2]
[363775881,1748867464815,-1232.13968575,0.0001994,2]
[363775882,1748867464823,-168.01978505,0.0001994,2]
[363775883,1748867464832,-1941.56534051,0.0001994,2]
[363775884,1748867464841,-356.0,0.00019943,2]
[363775885,1748867464851,-587.0,0.00019946,2]
[363775886,1748867464861,-1271.0,0.00019956,2]
[363775887,1748867464871,-925.0,0.00019956,2]
[363775888,1748867464880,-588.0,0.00019956,2]
[363775889,1748867464889,-557.0,0.00019956,2]
[363775890,1748867464898,-1157.0,0.00019956,2]
[363775891,1748867464906,-7010.0,0.00019956,2]
[363775892,1748867464913,-943.0,0.00019956,2]
[363775893,1748867464922,-289.136,0.00019956,2]
[363775894,1748867464932,-5800.0,0.00019958,2]
[363775895,1748867464942,-5800.0,0.00019966,2]
[363775896,1748867464951,-500.0,0.00019973,2]
[363775897,1748867464961,-500.0,0.00019973,2]
[363775898,1748867464970,-500.0,0.00019973,2]
[363775899,1748867464979,-500.0,0.00019973,2]
[363775900,1748867464990,-500.0,0.00019973,2]
[363775901,1748867465000,-500.0,0.00019973,2]
[363775902,1748867465010,-500.0,0.00019973,2]
[363775903,1748867465020,-500.0,0.00019973,2]
[363775904,1748867465029,-500.0,0.00019973,2]
[363775905,1748867465039,-418.7187432,0.00019973,2]
[363775906,1748867465049,-500.0,0.00019973,2]
[363775907,1748867465059,-500.0,0.00019973,2]
[363775908,1748867465069,-500.0,0.00019973,2]
[363775909,1748867465079,-500.0,0.00019973,2]
[363775910,1748867465089,-500.0,0.00019973,2]
[363775911,1748867465100,-500.0,0.00019973,2]
[363775912,1748867465110,-500.0,0.00019973,2]
[363775913,1748867465119,-12500.0,0.00019973,2]
[363775914,1748867465128,-500.0,0.00019973,2]
[363775915,1748867465136,-202.81788402,0.00019973,2]
[363775916,1748867465145,-150.0,0.00019973,2]
[363775917,1748867465153,-150.0,0.00019973,2]
[363775918,1748867465162,-158.7325083,0.00019973,2]
[363775919,1748867465170,-500.0,0.00019973,2]
[363775920,1748867465178,-500.0,0.00019973,2]
[363775921,1748867465188,-150.0,0.00019973,2]
[363775922,1748867465198,-150.0,0.00019973,2]
[363775923,1748867465208,-500.0,0.00019973,2]
[363775924,1748867465218,-500.0,0.00019973,2]
[363775925,1748867465227,-152.36542362,0.00019973,2]
[363775926,1748867465236,-150.0,0.00019973,2]
[363775927,1748867465247,-150.0,0.00019973,2]
[363775928,1748867465256,-500.0,0.00019973,2]
[363775929,1748867465265,-500.0,0.00019973,2]
[363775930,1748867465275,-500.0,0.00019973,2]
[363775931,1748867465284,-150.0,0.00019973,2]
[363775932,1748867465295,-155.96936233,0.00019973,2]
[363775933,1748867465305,-150.0,0.00019973,2]
[363775934,1748867465314,-500.0,0.00019973,2]
[363775935,1748867465324,-2110.0,0.00019973,2]
[363775936,1748867465335,-159.73842981,0.00019973,2]
[363775937,1748867465345,-150.0,0.00019973,2]
[363775938,1748867465356,-151.45493152,0.00019973,2]
[363775939,1748867465366,-150.0,0.00019973,2]
[363775940,1748867465375,-150.0,0.00019973,2]
[363775941,1748867465385,-500.0,0.00019973,2]
[363775942,1748867465395,-150.0,0.00019973,2]
[363775943,1748867465404,-154.77800031,0.00019973,2]
[363775944,1748867465414,-500.0,0.00019973,2]
[363775945,1748867465424,-150.0,0.00019973,2]
[363775946,1748867465434,-500.0,0.00019973,2]
[363775947,1748867465448,-5800.0,0.00019975,2]
[363775948,1748867465458,-150.0,0.00019983,2]
[363775949,1748867465468,-5800.0,0.00019983,2]
[363775950,1748867465478,-150.0,0.00019989,4]
[363775951,1748867465488,-150.0,0.00019989,4]
[363775952,1748867465498,-7687.1396215,0.00019991,2]
[363775953,1748867465508,-5800.0,0.00019992,2]
[363775954,1748867465517,-500.0,0.00019995,2]
[363775955,1748867465527,-500.0,0.00019995,2]
[363775956,1748867465537,-152.89649,0.00019996,2]
[363775957,1748867465547,-151.0,0.00019996,2]
[363775958,1748867465556,-151.0,0.00019996,2]
[363775959,1748867465566,-151.0,0.00019996,2]
[363775960,1748867465575,-151.0,0.00019996,2]
[363775961,1748867465585,-151.0,0.00019996,2]
[363775962,1748867465594,-151.0,0.00019996,2]
[363775963,1748867465603,-151.121135,0.00019996,2]
[363775964,1748867465612,-14715.5354405,0.00019996,2]
[363775965,1748867465623,-6772.0590537,0.00019996,2]
[363775966,1748867465633,-58557.5299349,0.00019996,2]
[363775967,1748867465643,-1451.6414304,0.00019996,2]
[363775968,1748867465652,-162.55463178,0.00019996,2]
[363775969,1748867465662,-16511.0474845,0.00019996,2]
[363775970,1748867465672,-780.0071388,0.00019996,2]
[363775971,1748867465682,-300.0,0.00019999,2]
[363775972,1748867465692,-300.0,0.00019999,2]
[363775973,1748867465702,-590.94,0.00019999,2]
[363775974,1748867465712,-500.0,0.00019999,2]
[363775975,1748867465722,-500.0,0.00019999,2]
[363775976,1748867465732,-500.0,0.00019999,2]
[363775977,1748867465742,-165.98636087,0.00019999,2]
[363775978,1748867465752,-500.0,0.00019999,2]
[363775979,1748867465761,-201.57057131,0.00019999,2]
[363775980,1748867465771,-500.0,0.00019999,2]
[363775981,1748867465781,-321.32307966,0.00019999,2]
[363775982,1748867465790,-337.09204246,0.00019999,2]
[363775983,1748867465800,-199.55086231,0.00019999,2]
[363775984,1748867465809,-500.0,0.00019999,2]
[363775985,1748867465819,-500.0,0.00019999,2]
[363775986,1748867465829,-500.0,0.00019999,2]
[363775987,1748867465839,-536.43013876,0.00019999,2]
[363775988,1748867465849,-500.0,0.00019999,2]
[363775989,1748867465859,-500.0,0.00019999,2]
[363775990,1748867465869,-500.0,0.00019999,2]
[363775991,1748867465879,-500.0,0.00019999,2]
[363775992,1748867465891,-500.0,0.00019999,2]
[363775993,1748867465901,-455.93665222,0.00019999,2]
[363775994,1748867465911,-500.0,0.00019999,2]
[363775995,1748867465920,-500.0,0.00019999,2]
[363775996,1748867465932,-500.0,0.00019999,2]
[363775997,1748867465942,-500.0,0.00019999,2]
[363775998,1748867465952,-500.0,0.00019999,2]
[363775999,1748867465962,-500.0,0.00019999,2]
[363776000,1748867465972,-500.0,0.00019999,2]
[363776001,1748867465981,-500.0,0.00019999,2]
[363776002,1748867465990,-500.0,0.00019999,2]
[363776003,1748867465999,-363.85218851,0.00019999,2]
[363776004,1748867466009,-500.0,0.00019999,2]
[363776005,1748867466018,-500.0,0.00019999,2]
[363776006,1748867466027,-204.69653195,0.00019999,2]
[363776007,1748867466037,-500.0,0.00019999,2]
[363776008,1748867466046,-234.41609969,0.0002,2]
[363776009,1748867466057,-166659.30640058,0.0002,2]
[363776010,1748867466066,-63795.89369125,0.0002,2]
[363776011,1748867466076,-5800.0,0.0002,2]
[363776012,1748867466086,-153.055347,0.0002,2]
[363776013,1748867466096,-151.0,0.0002,2]
[363776014,1748867466106,-151.0,0.0002,2]
[363776015,1748867466116,-151.0,0.0002,2]
[363776016,1748867466126,-151.0,0.0002,2]
[363776017,1748867466136,-589.346771,0.0002,2]
[363776018,1748867466145,-589.346771,0.0002,2]
[363776019,1748867466155,-589.346771,0.0002,2]
[363776020,1748867466164,-589.346771,0.0002,2]
[363776021,1748867466174,-229.766422,0.0002,2]
[363776022,1748867466184,-151.0,0.0002,2]
[363776023,1748867466193,-151.0,0.0002,2]
[363776024,1748867466204,-151.0,0.0002,2]
[363776025,1748867466213,-151.0,0.0002,2]
[363776026,1748867466223,-152.918821,0.0002,2]
[363776027,1748867466233,-151.0,0.0002,2]
[363776028,1748867466243,-151.0,0.0002,2]
[363776029,1748867466252,-151.0,0.0002,2]
[363776030,1748867466262,-151.0,0.0002,2]
[363776031,1748867466271,-151.0,0.0002,2]
[363776032,1748867466281,-151.0,0.0002,2]
[363776033,1748867466290,-151.0,0.0002,2]
[363776034,1748867466300,-151.0,0.0002,2]
[363776035,1748867466310,-151.0,0.0002,2]
[363776036,1748867466321,-151.0,0.0002,2]
[363776037,1748867466331,-151.0,0.0002,2]
[363776038,1748867466341,-151.0,0.0002,2]
[363776039,1748867466350,-151.0,0.0002,2]
[363776040,1748867466360,-259.476612,0.0002,2]
[363776041,1748867466370,-151.0,0.0002,2]
[363776042,1748867466380,-151.0,0.0002,2]
[363776043,1748867466390,-151.0,0.0002,2]
[363776044,1748867466400,-151.0,0.0002,2]
[363776045,1748867466410,-151.0,0.0002,2]
[363776046,1748867466420,-152.343485,0.0002,2]
[363776047,1748867466430,-5800.0,0.0002,2]
[363776048,1748867466442,-153.997688,0.0002,2]
[363776049,1748867466452,-151.0,0.0002,2]
[363776050,1748867466462,-151.0,0.0002,2]
[363776051,1748867466472,-151.0,0.0002,2]
[363776052,1748867466482,-205.094756,0.0002,2]
[363776053,1748867466492,-151.299174,0.0002,2]
[363776054,1748867466502,-299.50673,0.0002,2]
[363776055,1748867466512,-151.0,0.0002,2]
[363776056,1748867466523,-151.0,0.0002,2]
[363776057,1748867466533,-157.27804,0.0002,2]
[363776058,1748867466543,-151.0,0.0002,2]
[363776059,1748867466553,-191.769349,0.0002,2]
[363776060,1748867466563,-476.582452,0.0002,2]
[363776061,1748867466573,-476.582452,0.0002,2]
[363776062,1748867466583,-476.582452,0.0002,2]
[363776063,1748867466593,-476.582452,0.0002,2]
[363776064,1748867466603,-476.582452,0.0002,2]
[363776065,1748867466613,-476.582452,0.0002,2]
[363776066,1748867466623,-151.0,0.0002,2]
[363776067,1748867466632,-152.950133,0.0002,2]
[363776068,1748867466642,-151.0,0.0002,2]
[363776069,1748867466652,-152.163341,0.0002,2]
[363776070,1748867466662,-1362.00062862,0.0002,2]
[363776071,1748867466671,-151.0,0.0002,2]
[363776072,1748867466681,-151.0,0.0002,2]
[363776073,1748867466690,-151.0,0.0002,2]
[363776074,1748867466700,-161.817706,0.0002,2]
[363776075,1748867466709,-179.92536,0.0002,2]
[363776076,1748867466718,-179.92536,0.0002,2]
[363776077,1748867466728,-179.92536,0.0002,2]
[363776078,1748867466739,-202.0,0.0002,2]
[363776079,1748867466748,-202.0,0.0002,2]
[363776080,1748867466757,-202.0,0.0002,2]
[363776081,1748867466767,-179.92536,0.0002,2]
[363776082,1748867466778,-179.92536,0.0002,2]
[363776083,1748867466788,-179.92536,0.0002,2]
[363776084,1748867466799,-202.0,0.0002,2]
[363776085,1748867466808,-202.0,0.0002,2]
[363776086,1748867466819,-202.0,0.0002,2]
[363776087,1748867466830,-202.0,0.0002,2]
[363776088,1748867466840,-202.0,0.0002,2]
[363776089,1748867466850,-202.0,0.0002,2]
[363776090,1748867466859,-151.0,0.0002,2]
[363776091,1748867466868,-151.0,0.0002,2]
[363776092,1748867466878,-151.0,0.0002,2]
[363776093,1748867466887,-151.0,0.0002,2]
[363776094,1748867466896,-151.0,0.0002,2]
[363776095,1748867466906,-151.0,0.0002,2]
[363776096,1748867466915,-150.0,0.0002,2]
[363776097,1748867466925,-150.0,0.0002,2]
[363776098,1748867466935,-150.0,0.0002,2]
[363776099,1748867466945,-150.0,0.0002,2]
[363776100,1748867466954,-150.0,0.0002,2]
[363776101,1748867466964,-151.0,0.0002,2]